fUST/lending_fUST_20240718
["ID","MTS","AMOUNT","RATE_DAILY","PERIOD"]
[332509734,1721283040750,-501.846423,0.00021889,2]
[332509735,1721283040760,-501.846423,0.00021889,2]
[332509736,1721283040770,-501.846423,0.00021889,2]
[332509737,1721283040779,-501.846423,0.00021889,2]
[332509738,1721283040790,-501.846423,0.00021889,2]
[332509739,1721283040800,-151.223874,0.00021889,2]
[332509740,1721283040809,-167.670778,0.0002189,2]
[332509741,1721283040822,-19473.486112,0.0002189,3]
[332509742,1721283040832,-151.0,0.00021895,2]
[332509743,1721283040842,-195.83024215,0.00021896,2]
[332509744,1721283040851,-151.0,0.00021896,2]
[332509745,1721283040862,-167.886151,0.00021896,2]
[332509746,1721283040872,-167.886151,0.00021896,2]
[332509747,1721283040882,-151.0,0.00021897,2]
[332509748,1721283040892,-167.886151,0.00021897,2]
[332509749,1721283040902,-167.886151,0.00021897,2]
[332509750,1721283040912,-151.0,0.00021897,2]
[332509751,1721283040921,-151.0,0.00021897,2]
[332509752,1721283040931,-534.753484,0.00021897,2]
[332509753,1721283040941,-534.753484,0.00021897,2]
[332509754,1721283040951,-278.981382,0.00021897,2]
[332509755,1721283040961,-250.49458,0.00021897,2]
[332509756,1721283040971,-250.49458,0.00021897,2]
[332509757,1721283040981,-278.981382,0.00021897,2]
[332509758,1721283040990,-554.109537,0.00021897,2]
[332509759,1721283041000,-554.109537,0.00021897,2]
[332509760,1721283041010,-253.820391,0.00021897,2]
[332509761,1721283041020,-253.820391,0.00021897,2]
[332509762,1721283041030,-501.846423,0.00021897,2]
[332509763,1721283041040,-501.846423,0.00021897,2]
[332509764,1721283041050,-500.0,0.00021897,2]
[332509765,1721283041060,-186.65144073,0.00021897,2]
[332509766,1721283041070,-500.0,0.00021897,2]
[332509767,1721283041079,-442.48939789,0.00021897,2]
[332509768,1721283041088,-500.0,0.00021897,2]
[332509769,1721283041098,-605.52299024,0.00021897,2]
[332509770,1721283041108,-500.0,0.00021897,2]
[332509771,1721283041118,-500.0,0.00021897,2]
[332509772,1721283041128,-241.9199727,0.00021897,2]
[332509773,1721283041137,-500.0,0.00021897,2]
[332509774,1721283041147,-500.0,0.00021897,2]
[332509775,1721283041157,-500.0,0.00021897,2]
[332509776,1721283041166,-500.0,0.00021897,2]
[332509777,1721283041176,-4999.32571527,0.00021899,2]
[332509805,1721283043076,-5833.49533879,0.00021899,2]
[332510004,1721284238224,-8335.0,0.0001975,2]
[332510005,1721284238234,-150.0,0.00019797,2]
[332510006,1721284238244,-1000.0,0.0002,6]
[332510007,1721284238254,-300.0,0.00020994,2]
[332510008,1721284238265,-4225.74838,0.00021,2]
[332510010,1721284238275,-1000.0,0.00021,21]
[332510012,1721284238284,-445.201941,0.00021096,2]
[332510014,1721284238294,-374.0,0.000211,2]
[332510016,1721284238305,-166.666666,0.0002137,2]
[332510017,1721284238314,-396.91573263,0.00021499,2]
[332510018,1721284238323,-10000.0,0.000215,2]
[332510019,1721284238333,-1472.73826697,0.000217,2]
[332510020,1721284238342,-299.66938998,0.00021799,2]
[332510021,1721284238358,-3216.68696618,0.000218,2]
[332510022,1721284238371,-7815.59474931,0.000218,2]
[332510033,1721284240840,-166.98450024,0.000218,2]
[332510034,1721284240850,-3000.0,0.000218,2]
[332510035,1721284240860,-19095.2688679,0.000218,3]
[332510036,1721284240871,-370.872586,0.00021809,2]
[332510037,1721284240881,-195.83024215,0.00021809,2]
[332510038,1721284240891,-32543.99508468,0.0002181,2]
[332510072,1721284243278,-953.29749767,0.0002181,2]
[332510073,1721284243292,-1589.11710305,0.0002181,2]
[332510074,1721284243310,-5833.49533879,0.0002181,2]
[332510113,1721285227588,773.07439355,0.00021,32]
[332510153,1721285432308,-150.0,0.000189,2]
[332510155,1721285432318,-6089.89188359,0.00019,2]
[332510200,1721285438260,-2032.34875373,0.00019,2]
[332510225,1721285440660,-6913.59821564,0.00019,2]
[332510226,1721285440669,-166.666666,0.00019945,2]
[332510227,1721285440679,-165.0003155,0.00020103,2]
[332510228,1721285440689,-1831.7351946,0.00020153,2]
[332510229,1721285440698,-193.559772,0.00020196,2]
[332510231,1721285440707,-456.35836971,0.00020243,2]
[332510233,1721285440717,-166.666666,0.00020489,2]
[332510234,1721285440726,-300.0,0.00020999,2]
[332510237,1721285440736,-1000.0,0.00021,21]
[332510238,1721285440745,-6994.4971713,0.00021,2]
[332510240,1721285440754,-166.666666,0.00021032,2]
[332510242,1721285440763,-422.941843,0.00021096,2]
[332510244,1721285440774,-166.666666,0.0002137,2]
[332510246,1721285440783,-166.666666,0.00021576,2]
[332510248,1721285440792,-424.51340734,0.00021709,2]
[332510250,1721285440802,-1288.64598366,0.0002171,2]
[332510252,1721285440811,-229.60825108,0.00021799,2]
[332510253,1721285440821,-12056.906059,0.000218,2]
[332510309,1721286461799,1000.0,0.00016,2]
[332510314,1721286607838,196.92709001,0.00018799,3]
[332510389,1721286638751,-266.61190487,0.00017804,2]
[332510390,1721286638761,-195.83024215,0.00017805,2]
[332510391,1721286638773,-19.74924031,0.00018899,2]
[332510401,1721286641020,-267.55842376,0.00018899,2]
[332510402,1721286641031,-287.30766407,0.00018899,2]
[332510403,1721286641041,-150.0,0.000189,2]
[332510404,1721286641051,-166.666666,0.00019804,2]
[332510405,1721286641062,-166.666666,0.00020343,2]
[332510406,1721286641075,-161.185056,0.0002058,2]
[332510407,1721286641085,-166.666666,0.00020883,2]
[332510408,1721286641095,-424.51340734,0.00021,2]
[332510409,1721286641105,-401.79475,0.00021096,2]
[332510410,1721286641114,-321.97,0.0002118,7]
[332510411,1721286641123,-154.80649189,0.00021259,2]
[332510412,1721286641133,-480.48854678,0.00021369,2]
[332510413,1721286641142,-166.666666,0.0002137,2]
[332510414,1721286641152,-278.30327209,0.000214,2]
[332510415,1721286641161,-166.666666,0.00021423,2]
[332510416,1721286641172,-400.02604267,0.00021702,2]
[332510417,1721286641181,-1288.64598366,0.0002171,2]
[332510418,1721286641191,-300.0,0.00021799,2]
[332510419,1721286641204,-30678.66076696,0.000218,2]
[332510435,1721286643924,-1152.99990005,0.000218,2]
[332510462,1721287132471,-4890.42305558,0.00025,60]
[332510467,1721287294421,-500.0,0.00025,30]
[332510468,1721287294445,-500.0,0.00025,30]
[332510469,1721287294468,-500.0,0.00025,30]
[332510470,1721287294492,-500.0,0.00025,30]
[332510471,1721287294514,-500.0,0.00025,30]
[332510472,1721287294540,-500.0,0.00025,30]
[332510473,1721287294563,-500.0,0.00025,30]
[332510474,1721287294586,-500.0,0.00025,30]
[332510475,1721287294609,-500.0,0.00025,30]
[332510476,1721287294631,-500.0,0.00025,30]
[332510477,1721287294654,-500.0,0.00025,30]
[332510478,1721287294676,-500.0,0.00025,30]
[332510479,1721287294699,-500.0,0.00025,30]
[332510480,1721287294724,-150.0,0.00025,30]
[332510481,1721287294753,-592.0,0.00025,30]
[332510482,1721287294776,-3758.0,0.00025,30]
[332510595,1721287832770,-813.31159381,0.00017788,2]
[332510597,1721287832779,-229.06221126,0.0002,2]
[332510603,1721287832839,-255.0,0.0002,2]
[332510605,1721287832850,-2636.27229876,0.0002,2]
[332510607,1721287832859,-163.429298,0.00020192,2]
[332510609,1721287832869,-166.666666,0.00020321,2]
[332510610,1721287832878,-166.666666,0.00020875,2]
[332510612,1721287832887,-229.60825108,0.00021,2]
[332510614,1721287832898,-1000.0,0.00021,9]
[332510616,1721287832907,-381.705012,0.00021096,2]
[332510617,1721287832917,-166.666666,0.0002137,2]
[332510618,1721287832926,-166.666666,0.00021429,2]
[332510619,1721287832936,-150.112233,0.000217,2]
[332510620,1721287832945,-1127.56523565,0.0002171,2]
[332510621,1721287832955,-300.0,0.00021799,2]
[332510622,1721287832965,-300.0,0.00021799,2]
[332510623,1721287832975,-79986.89368608,0.000218,2]
[332510624,1721287832989,-1518.48172937,0.000218,2]
[332510635,1721287838893,-9710.65988083,0.000218,2]
[332510674,1721287841192,-7182.84316959,0.000218,2]
[332510675,1721287841203,-367.7885634,0.000218,2]
[332510684,1721287844030,-717.56833356,0.000218,2]
[332510685,1721287844242,-5833.49533879,0.000218,2]
[332533859,1721289031887,-300.0,0.00018999,2]
[332533860,1721289031898,-29064.58765184,0.00019,2]
[332533861,1721289031908,-166.666666,0.00019556,2]
[332533862,1721289031918,-150.0,0.000197,2]
[332533863,1721289031929,-1147.70032916,0.00019798,2]
[332533864,1721289031940,-8261.5110996,0.0001987,2]
[332533865,1721289031954,-178.649658,0.00019898,2]
[332533866,1721289031965,-1000.0,0.0002,8]
[332533867,1721289031975,-151.0,0.0002,2]
[332533868,1721289031985,-166.666666,0.0002009,2]
[332533869,1721289031997,-178.649658,0.00020416,2]
[332533870,1721289032008,-287.30766407,0.00020516,2]
[332533871,1721289032018,-1147.70032914,0.00020517,2]
[332533872,1721289032032,-4245.19527503,0.00020605,2]
[332533873,1721289032044,-166.666666,0.00020623,2]
[332533874,1721289032055,-356.49268176,0.00020857,2]
[332533875,1721289032066,-4245.19527503,0.00020883,2]
[332533876,1721289032076,-420.0,0.00020899,2]
[332533877,1721289032086,-178.649658,0.00020934,2]
[332533878,1721289032096,-1000.0,0.00021,9]
[332533879,1721289032107,-379.969809,0.00021096,2]
[332533880,1721289032119,-166.666666,0.00021156,2]
[332533881,1721289032129,-1147.70032914,0.00021236,2]
[332533882,1721289032139,-356.49268176,0.0002127,2]
[332533883,1721289032149,-4245.19527503,0.00021301,2]
[332533884,1721289032160,-151.0,0.00021344,2]
[332533885,1721289032170,-166.666666,0.0002137,2]
[332533886,1721289032179,-356.49268176,0.00021404,2]
[332533887,1721289032189,-151.0,0.00021418,2]
[332533888,1721289032199,-320.85209,0.00021418,2]
[332533889,1721289032209,-151.0,0.00021418,2]
[332533890,1721289032219,-320.85209,0.00021418,2]
[332533891,1721289032229,-151.0,0.00021437,2]
[332533892,1721289032239,-151.0,0.00021437,2]
[332533893,1721289032248,-153.876023,0.00021439,2]
[332533894,1721289032258,-151.0,0.0002144,2]
[332533895,1721289032268,-151.0,0.0002144,2]
[332533896,1721289032278,-4245.19527505,0.00021469,2]
[332533897,1721289032287,-151.0,0.00021469,2]
[332533898,1721289032298,-150.112233,0.000215,2]
[332533899,1721289032307,-151.0,0.00021534,2]
[332533900,1721289032317,-151.0,0.00021534,2]
[332533901,1721289032327,-156.958921,0.00021534,2]
[332533902,1721289032337,-156.958921,0.00021534,2]
[332533903,1721289032346,-158.401205,0.00021534,2]
[332533904,1721289032356,-158.401205,0.00021534,2]
[332533905,1721289032366,-151.0,0.00021534,2]
[332533906,1721289032376,-151.0,0.00021534,2]
[332533907,1721289032386,-151.0,0.00021534,2]
[332533908,1721289032395,-151.0,0.00021534,2]
[332533909,1721289032405,-327.708923,0.00021534,2]
[332533910,1721289032414,-327.708923,0.00021534,2]
[332533911,1721289032424,-151.0,0.00021534,2]
[332533912,1721289032434,-245.757683,0.00021534,2]
[332533913,1721289032443,-245.757683,0.00021534,2]
[332533914,1721289032452,-151.0,0.00021534,2]
[332533915,1721289032462,-151.0,0.00021534,2]
[332533916,1721289032472,-240.30832,0.00021534,2]
[332533917,1721289032481,-240.30832,0.00021534,2]
[332533918,1721289032490,-250.923211,0.00021534,2]
[332533919,1721289032499,-250.923211,0.00021534,2]
[332533920,1721289032509,-151.0,0.00021535,2]
[332533921,1721289032518,-151.0,0.00021535,2]
[332533922,1721289032528,-177.240691,0.00021535,2]
[332533923,1721289032538,-177.240691,0.00021535,2]
[332533924,1721289032548,-151.0,0.00021535,2]
[332533925,1721289032557,-151.0,0.00021535,2]
[332533926,1721289032566,-151.0,0.00021535,2]
[332533927,1721289032576,-151.0,0.00021535,2]
[332533928,1721289032586,-151.0,0.00021535,2]
[332533929,1721289032596,-151.0,0.00021535,2]
[332533930,1721289032606,-151.0,0.00021631,2]
[332533931,1721289032615,-160.17909558,0.0002165,2]
[332533932,1721289032624,-270.92599341,0.00021688,2]
[332533933,1721289032634,-166.666666,0.00021689,2]
[332533934,1721289032643,-309.35049823,0.00021725,2]
[332533935,1721289032653,-400.02604267,0.00021725,2]
[332533936,1721289032662,-151.0,0.00021726,2]
[332533937,1721289032671,-370.872586,0.00021789,2]
[332533938,1721289032681,-151.0,0.0002179,2]
[332533939,1721289032690,-151.0,0.0002179,2]
[332533940,1721289032701,-177.240691,0.0002179,2]
[332533941,1721289032711,-177.240691,0.0002179,2]
[332533942,1721289032720,-151.0,0.0002179,2]
[332533943,1721289032730,-172.328518,0.0002179,2]
[332533944,1721289032740,-151.0,0.0002179,2]
[332533945,1721289032750,-151.0,0.0002179,2]
[332533946,1721289032759,-151.0,0.0002179,2]
[332533947,1721289032769,-151.0,0.0002179,2]
[332533948,1721289032778,-151.0,0.0002179,2]
[332533949,1721289032788,-151.0,0.0002179,2]
[332533950,1721289032799,-327.708923,0.0002179,2]
[332533951,1721289032808,-327.708923,0.0002179,2]
[332533952,1721289032818,-151.0,0.0002179,2]
[332533953,1721289032828,-245.757683,0.0002179,2]
[332533954,1721289032837,-245.757683,0.0002179,2]
[332533955,1721289032847,-151.0,0.0002179,2]
[332533956,1721289032856,-151.0,0.0002179,2]
[332533957,1721289032866,-203.57,0.0002179,3]
[332533958,1721289032876,-240.30832,0.0002179,2]
[332533959,1721289032885,-240.30832,0.0002179,2]
[332533960,1721289032895,-19095.2688679,0.0002179,3]
[332533961,1721289032906,-250.923211,0.0002179,2]
[332533962,1721289032915,-250.923211,0.0002179,2]
[332533963,1721289032925,-151.0,0.0002179,2]
[332533964,1721289032934,-167.670778,0.0002179,2]
[332533965,1721289032948,-320.85209,0.0002179,2]
[332533966,1721289032958,-320.85209,0.0002179,2]
[332533967,1721289032968,-151.0,0.0002179,2]
[332533968,1721289032978,-151.0,0.0002179,2]
[332533969,1721289032987,-320.85209,0.0002179,2]
[332533970,1721289032997,-320.85209,0.0002179,2]
[332533971,1721289033007,-151.0,0.0002179,2]
[332533972,1721289033018,-151.0,0.0002179,2]
[332533973,1721289033028,-156.127098,0.00021797,2]
[332533974,1721289033038,-151.0,0.00021797,2]
[332533975,1721289033049,-156.958921,0.00021797,2]
[332533976,1721289033059,-156.958921,0.00021797,2]
[332533977,1721289033069,-158.401205,0.00021797,2]
[332533978,1721289033079,-158.401205,0.00021797,2]
[332533979,1721289033089,-151.0,0.00021797,2]
[332533980,1721289033099,-151.0,0.00021797,2]
[332533981,1721289033109,-229.43037279,0.00021799,2]
[332533982,1721289033119,-25019.38859075,0.000218,2]
[332533985,1721289037939,-151.0,0.00021418,2]
[332533986,1721289037954,-151.0,0.00021469,2]
[332533987,1721289037963,-151.0,0.0002179,2]
[332533988,1721289037973,-103.20596396,0.0002179,2]
[332534025,1721289040092,-47.79403604,0.0002179,2]
[332534026,1721289040102,-1329.27954589,0.000218,5]
[332534028,1721289040111,-31290.25921136,0.000218,2]
[332534338,1721289043219,-5833.49533879,0.000218,2]
[332541105,1721289200772,5000.0,0.00024,60]
[332541142,1721290240266,-166.666666,0.00020234,2]
[332541143,1721290240276,-166.666666,0.00020786,2]
[332541144,1721290240286,-1000.0,0.00021,21]
[332541145,1721290240295,-360.971318,0.00021096,2]
[332541146,1721290240304,-166.666666,0.00021337,2]
[332541147,1721290240314,-166.666666,0.0002137,2]
[332541148,1721290240326,-286.55480407,0.0002165,2]
[332541149,1721290240335,-150.112233,0.000217,2]
[332541150,1721290240350,-266.0,0.00021799,2]
[332541151,1721290240361,-29937.02777422,0.000218,2]
[332541185,1721291023511,1588.0,0.00016,2]
[332541272,1721291432744,-166.666666,0.00020181,2]
[332541274,1721291432754,-4096.0223481,0.00020302,2]
[332541276,1721291432764,-547.3958726,0.0002035,2]
[332541278,1721291432775,-166.666666,0.00020731,2]
[332541280,1721291432785,-374.0,0.000209,2]
[332541282,1721291432795,-929.7484473,0.00021,10]
[332541795,1721291438329,-70.2515527,0.00021,10]
[332541797,1721291438339,-360.971319,0.00021096,2]
[332541799,1721291438348,-150.112233,0.000211,2]
[332541801,1721291438359,-150.112233,0.000212,4]
[332541803,1721291438368,-166.666666,0.00021281,2]
[332541805,1721291438377,-150.112233,0.000213,4]
[332541806,1721291438387,-166.666666,0.0002137,2]
[332541808,1721291438396,-150.112233,0.000214,5]
[332541810,1721291438405,-151.0,0.000215,2]
[332541812,1721291438415,-150.112233,0.000215,4]
[332541814,1721291438425,-150.112233,0.000216,4]
[332541816,1721291438434,-717.31270573,0.00021697,2]
[332541818,1721291438444,-266.0,0.00021699,2]
[332541819,1721291438453,-811.4056812,0.000217,14]
[332541821,1721291438462,-150.112233,0.000217,2]
[332541823,1721291438471,-1329.27954589,0.00021778,5]
[332541825,1721291438481,-1378.76023248,0.00021778,2]
[332541979,1721291440486,-32500.66612729,0.00021778,2]
[332547537,1721291681698,150.78889555,0.00022289,30]
[332547543,1721291910213,150.78889555,0.00022289,30]
[332547606,1721292632557,-166.666666,0.00019968,2]
[332547608,1721292632567,-187.676254,0.00020077,2]
[332547610,1721292632577,-568.4131557,0.00020294,2]
[332547612,1721292632587,-161.655826,0.00020476,2]
[332547614,1721292632597,-166.666666,0.00020513,2]
[332547616,1721292632607,-158.506646,0.0002072,2]
[332547618,1721292632617,-161.655826,0.00020743,2]
[332547620,1721292632627,-352.95767281,0.00020826,2]
[332547622,1721292632637,-270.0,0.000209,2]
[332547624,1721292632646,-300.0,0.00020999,2]
[332547626,1721292632657,-10492.00678792,0.00021,2]
[332547628,1721292632666,-4073.82762046,0.00021,2]
[332547630,1721292632676,-248.15366783,0.00021,2]
[332547632,1721292632685,-150.112233,0.00021,2]
[332547634,1721292632696,-161.655826,0.0002101,2]
[332547636,1721292632706,-166.666666,0.00021057,2]
[332547638,1721292632716,-165.735444,0.00021096,2]
[332547640,1721292632725,-358.581168,0.00021096,2]
[332547643,1721292632735,-150.112233,0.000211,2]
[332547645,1721292632745,-352.95767281,0.0002111,2]
[332547647,1721292632755,-3114.87962153,0.00021169,2]
[332547649,1721292632766,-150.112233,0.000212,2]
[332547651,1721292632776,-161.655826,0.00021276,2]
[332547653,1721292632786,-150.112233,0.000213,5]
[332547655,1721292632796,-166.666666,0.0002137,2]
[332547657,1721292632805,-352.95767282,0.00021391,2]
[332547659,1721292632815,-150.112233,0.000214,4]
[332547661,1721292632825,-435.0,0.00021499,2]
[332547663,1721292632835,-150.112233,0.000215,2]
[332547665,1721292632844,-151.0,0.00021528,2]
[332547667,1721292632853,-161.655826,0.00021543,2]
[332547669,1721292632862,-293.94282819,0.00021545,2]
[332547671,1721292632871,-3114.87962153,0.00021546,2]
[332547673,1721292632880,-150.112233,0.000216,5]
[332547675,1721292632889,-166.666666,0.00021602,2]
[332547677,1721292632899,-151.0,0.00021625,2]
[332547679,1721292632908,-286.55480407,0.0002165,2]
[332547681,1721292632917,-453.38039488,0.00021697,2]
[332547683,1721292632927,-151.0,0.00021723,2]
[332547685,1721292632937,-453.38039488,0.00021727,2]
[332547687,1721292632946,-453.38039488,0.00021757,2]
[332547689,1721292632956,-1891.47096703,0.00021758,2]
[332547691,1721292632966,-25581.18540093,0.00021778,2]
[332547693,1721292632976,-453.38039488,0.00021787,2]
[332547695,1721292632987,-30000.0,0.00021789,2]
[332547697,1721292632996,-526.344963,0.0002179,2]
[332547699,1721292633005,-526.344963,0.0002179,2]
[332547701,1721292633016,-151.0,0.0002179,2]
[332547704,1721292633034,-151.0,0.0002179,2]
[332547706,1721292633046,-151.0,0.0002179,2]
[332547708,1721292633058,-151.0,0.0002179,2]
[332547710,1721292633069,-151.0,0.0002179,2]
[332547712,1721292633079,-151.0,0.0002179,2]
[332547714,1721292633088,-151.0,0.0002179,2]
[332547716,1721292633099,-151.0,0.0002179,2]
[332547718,1721292633109,-151.0,0.0002179,2]
[332547720,1721292633119,-151.0,0.0002179,2]
[332547723,1721292633130,-151.0,0.0002179,2]
[332547725,1721292633140,-151.0,0.0002179,2]
[332547727,1721292633150,-151.0,0.0002179,2]
[332547729,1721292633160,-151.0,0.0002179,2]
[332547731,1721292633170,-151.0,0.0002179,2]
[332547733,1721292633181,-151.223874,0.0002179,2]
[332547735,1721292633191,-151.0,0.0002179,2]
[332547737,1721292633200,-151.0,0.0002179,2]
[332547739,1721292633211,-151.0,0.0002179,2]
[332547741,1721292633222,-151.0,0.0002179,2]
[332547763,1721292633446,-151.0,0.0002179,2]
[332547765,1721292633458,-151.0,0.0002179,2]
[332547767,1721292633469,-246.86788111,0.0002179,2]
[332547768,1721292633478,-192.246656,0.0002179,2]
[332547770,1721292633488,-192.246656,0.0002179,2]
[332547772,1721292633497,-192.246656,0.0002179,2]
[332547774,1721292633507,-192.246656,0.0002179,2]
[332547776,1721292633521,-151.0,0.0002179,2]
[332547777,1721292633531,-151.0,0.0002179,2]
[332547779,1721292633540,-35236.6921023,0.0002179,3]
[332547781,1721292633550,-151.0,0.0002179,2]
[332547783,1721292633560,-151.0,0.0002179,2]
[332547785,1721292633570,-151.0,0.0002179,2]
[332547787,1721292633580,-151.0,0.0002179,2]
[332547789,1721292633590,-151.0,0.0002179,2]
[332547791,1721292633601,-151.0,0.0002179,2]
[332547793,1721292633611,-200.738569,0.0002179,2]
[332547795,1721292633621,-200.738569,0.0002179,2]
[332547798,1721292633631,-200.738569,0.0002179,2]
[332547800,1721292633641,-200.738569,0.0002179,2]
[332547802,1721292633651,-151.0,0.0002179,2]
[332547804,1721292633660,-151.0,0.0002179,2]
[332547805,1721292633670,-262.167138,0.0002179,2]
[332547807,1721292633680,-262.167138,0.0002179,2]
[332547809,1721292633689,-262.167138,0.0002179,2]
[332547812,1721292633700,-262.167138,0.0002179,2]
[332547814,1721292633711,-196.606146,0.0002179,2]
[332547816,1721292633720,-196.606146,0.0002179,2]
[332547818,1721292633730,-196.606146,0.0002179,2]
[332547820,1721292633740,-196.606146,0.0002179,2]
[332547822,1721292633749,-151.0,0.0002179,2]
[332547824,1721292633759,-151.0,0.0002179,2]
[332547826,1721292633770,-20217.91007185,0.0002179,2]
[332547828,1721292633779,-35236.6921023,0.00021795,3]
[332547830,1721292633792,-200.738569,0.00021795,2]
[332547832,1721292633803,-200.738569,0.00021795,2]
[332547834,1721292633814,-151.0,0.00021795,2]
[332547836,1721292633824,-262.167138,0.00021795,2]
[332547838,1721292633834,-262.167138,0.00021795,2]
[332547840,1721292633844,-196.606146,0.00021795,2]
[332547842,1721292633854,-196.606146,0.00021795,2]
[332547844,1721292633865,-151.0,0.00021795,2]
[332547847,1721292633875,-209.29235911,0.00021796,2]
[332547849,1721292633887,-320.63378515,0.00021796,2]
[332547851,1721292633898,-526.344963,0.00021797,2]
[332547853,1721292633907,-526.344963,0.00021797,2]
[332547855,1721292633917,-151.0,0.00021797,2]
[332547857,1721292633927,-151.0,0.00021797,2]
[332547859,1721292633936,-151.0,0.00021797,2]
[332547861,1721292633946,-151.0,0.00021797,2]
[332547863,1721292633957,-151.0,0.00021797,2]
[332547865,1721292633969,-151.0,0.00021797,2]
[332547867,1721292633979,-151.0,0.00021797,2]
[332547869,1721292633990,-151.0,0.00021797,2]
[332547871,1721292634000,-192.246656,0.00021797,2]
[332547873,1721292634010,-192.246656,0.00021797,2]
[332547875,1721292634024,-151.0,0.00021797,2]
[332547877,1721292634035,-151.0,0.00021797,2]
[332547879,1721292634045,-151.0,0.00021797,2]
[332547881,1721292634059,-200.738569,0.00021799,2]
[332547883,1721292634070,-200.738569,0.00021799,2]
[332547885,1721292634081,-151.0,0.00021799,2]
[332547887,1721292634090,-299.66938998,0.00021799,2]
[332547889,1721292634102,-262.167138,0.00021799,2]
[332547891,1721292634112,-262.167138,0.00021799,2]
[332547893,1721292634122,-196.606146,0.00021799,2]
[332547895,1721292634132,-196.606146,0.00021799,2]
[332547897,1721292634142,-151.0,0.00021799,2]
[332547899,1721292634153,-235551.19070005,0.000218,2]
[332547901,1721292634168,-2017.97847277,0.000218,2]
[332547903,1721292634181,-1590.67144333,0.000218,2]
[332548359,1721292638723,-318.5840029,0.00021778,5]
[332548543,1721292640653,-346.05577005,0.00021778,5]
[332548545,1721292640663,-151.0,0.0002179,2]
[332548547,1721292640672,-151.0,0.0002179,2]
[332548549,1721292640681,-151.0,0.00021794,2]
[332548551,1721292640691,-151.0,0.00021795,2]
[332548553,1721292640702,-42144.73731371,0.000218,2]
[332548556,1721292640715,-8261.4117607,0.000218,2]
[332548559,1721292640733,-116470.4473329,0.000218,2]
[332548796,1721292644055,-778.94486966,0.000218,2]
[332548798,1721292644070,-623.38716199,0.000218,2]
[332554735,1721293758620,301.13603735,9.999e-05,2]
[332554971,1721293818964,154.79631655,0.0001212,2]
[332555146,1721293831546,403.99853853,0.0001212,2]
[332555149,1721293831576,14764.40228357,0.0001212,2]
[332555241,1721293834073,567.49964681,0.0001212,2]
[332555273,1721293834835,316.05862187,0.0001212,2]
[332555275,1721293834864,201.91805091,0.0001212,2]
[332555401,1721293837876,-3141.55526019,0.00018898,2]
[332555402,1721293837888,-298.9324154,0.00019,2]
[332555404,1721293837899,-166.666666,0.00019881,2]
[332555405,1721293837909,-1590.6714434,0.00020374,2]
[332555407,1721293837919,-166.666666,0.00020423,2]
[332555408,1721293837930,-1407.0,0.00020661,2]
[332555409,1721293837939,-166.666666,0.00020965,2]
[332555411,1721293837949,-248.15366783,0.00021,2]
[332555412,1721293837959,-1000.0,0.00021,21]
[332555413,1721293837972,-394.51964,0.00021096,2]
[332555415,1721293837982,-300.0,0.00021199,2]
[332555416,1721293837991,-1742.0,0.000212,2]
[332555419,1721293838001,-1742.0,0.000212,2]
[332555421,1721293838010,-166.666666,0.0002137,2]
[332555423,1721293838020,-166.666666,0.00021507,2]
[332555426,1721293838030,-151.0,0.00021757,2]
[332555427,1721293838040,-11709.82105235,0.00021777,2]
[332555429,1721293838054,-18290.17894765,0.00021777,2]